fUSD/lending_fUSD_20250610
["ID","MTS","AMOUNT","RATE_DAILY","PERIOD"]
[365217033,1749539435020,-200.0,0.00017834,2]
[365217035,1749539435030,-4106.31120003,0.00017843,2]
[365217036,1749539435040,-200.0,0.00017845,2]
[365217039,1749539435051,-200.0,0.00017847,2]
[365217040,1749539435061,-3885.85091196,0.00017848,2]
[365217043,1749539435072,-282.48669926,0.00017851,2]
[365217045,1749539435082,-637.66539225,0.00017854,2]
[365217047,1749539435092,-200.0,0.00017858,2]
[365217048,1749539435101,-152.39864102,0.00017863,2]
[365217050,1749539435111,-151.0,0.00017864,2]
[365217052,1749539435122,-151.0,0.00017864,2]
[365217054,1749539435132,-151.0,0.00017864,2]
[365217056,1749539435142,-637.66539225,0.00017874,2]
[365217057,1749539435153,-200.0,0.00017874,2]
[365217058,1749539435163,-200.0,0.00017882,2]
[365217059,1749539435173,-1356.44477637,0.00017887,2]
[365217060,1749539435183,-282.48669926,0.00017888,2]
[365217061,1749539435193,-4642.23671432,0.00017895,2]
[365217062,1749539435203,-200.0,0.00017897,2]
[365217063,1749539435212,-151.0,0.000179,2]
[365217064,1749539435222,-151.0,0.000179,2]
[365217065,1749539435233,-151.0,0.000179,2]
[365217066,1749539435247,-151.0,0.000179,2]
[365217067,1749539435257,-151.0,0.000179,2]
[365217068,1749539435268,-154.047487,0.000179,2]
[365217069,1749539435278,-273.395545,0.000179,2]
[365217070,1749539435288,-273.395545,0.000179,2]
[365217071,1749539435298,-151.0,0.000179,2]
[365217072,1749539435308,-151.0,0.000179,2]
[365217073,1749539435318,-182.596802,0.000179,2]
[365217074,1749539435328,-182.596802,0.000179,2]
[365217075,1749539435339,-768.0,0.000179,2]
[365217076,1749539435349,-1000.0,0.000179,6]
[365217077,1749539435359,-2195.67373517,0.000179,2]
[365217078,1749539435369,-2195.67373501,0.000179,2]
[365217079,1749539435379,-2195.67373501,0.000179,2]
[365217080,1749539435389,-237.0,0.000179,2]
[365217081,1749539435400,-2195.67373501,0.000179,2]
[365217082,1749539435410,-2195.67373501,0.000179,2]
[365217083,1749539435420,-2195.67373501,0.000179,2]
[365217084,1749539435430,-500.0,0.000179,2]
[365217085,1749539435440,-376.0,0.000179,2]
[365217086,1749539435451,-151.0,0.00017917,2]
[365217087,1749539435461,-151.0,0.00017917,2]
[365217088,1749539435471,-151.0,0.00017917,2]
[365217089,1749539435482,-151.0,0.00017917,2]
[365217090,1749539435492,-151.0,0.00017917,2]
[365217091,1749539435502,-151.0,0.00017917,2]
[365217092,1749539435512,-151.0,0.00017917,2]
[365217093,1749539435522,-151.0,0.00017917,2]
[365217094,1749539435533,-759.01,0.00017917,2]
[365217095,1749539435543,-705.12,0.00017917,2]
[365217096,1749539435553,-802.89,0.00017917,2]
[365217097,1749539435563,-753.81,0.00017917,2]
[365217098,1749539435573,-490.0,0.00017917,2]
[365217099,1749539435584,-490.0,0.00017917,2]
[365217100,1749539435594,-490.0,0.00017917,2]
[365217101,1749539435605,-307.50202414,0.00017917,2]
[365217102,1749539435615,-490.0,0.00017917,2]
[365217103,1749539435625,-490.0,0.00017917,2]
[365217104,1749539435636,-662.73,0.00017917,2]
[365217105,1749539435647,-490.0,0.00017917,2]
[365217106,1749539435657,-609.05,0.00017917,2]
[365217107,1749539435667,-1397.0,0.00017918,2]
[365217108,1749539435678,-2002.5404548,0.0001793,2]
[365217109,1749539435689,-1000.0,0.00017946,2]
[365217110,1749539435699,-2195.67373501,0.0001795,2]
[365217111,1749539435709,-3885.85091196,0.00017969,2]
[365217112,1749539435720,-3052.81,0.0001797,2]
[365217113,1749539435730,-600.0,0.00017971,4]
[365217114,1749539435741,-186.69,0.00017972,2]
[365217115,1749539435751,-152.39864102,0.00017973,2]
[365217116,1749539435761,-610.96027888,0.00017973,2]
[365217117,1749539435771,-645.64794775,0.00017973,2]
[365217118,1749539435782,-1356.44477635,0.00017977,2]
[365217119,1749539435792,-151.0,0.00017986,2]
[365217120,1749539435803,-151.0,0.00017986,2]
[365217121,1749539435814,-276.562079,0.00017986,2]
[365217122,1749539435824,-673.19,0.00017986,2]
[365217123,1749539435835,-500.0,0.00017986,2]
[365217124,1749539435847,-151.0,0.00017987,2]
[365217125,1749539435857,-285.347773,0.00017987,2]
[365217126,1749539435867,-285.347773,0.00017987,2]
[365217127,1749539435876,-151.0,0.00017987,2]
[365217128,1749539435887,-151.0,0.00017987,2]
[365217129,1749539435897,-2838.3760476,0.00017987,2]
[365217130,1749539435908,-20602.5839741,0.00017987,2]
[365217131,1749539435918,-564.22586353,0.00017987,2]
[365217132,1749539435929,-500.0,0.00017987,2]
[365217133,1749539435939,-48350.70876755,0.00017987,2]
[365217134,1749539435958,-12921.2,0.00017987,2]
[365217135,1749539435970,-2737.28378383,0.00017987,2]
[365217136,1749539435986,-928.663573,0.00017987,2]
[365217137,1749539435998,-5482.2874,0.00017987,2]
[365217138,1749539436036,490.0,0.00016438,2]
[365217139,1749539436085,490.0,0.00016602,2]
[365217140,1749539436619,490.0,0.00016767,2]
[365217141,1749539436662,490.0,0.00016931,2]
[365217142,1749539436743,490.0,0.00016438,2]
[365217143,1749539436788,490.0,0.00016602,2]
[365217144,1749539436829,593.40234809,0.00016767,2]
[365217152,1749539438041,-490.0,0.00017095,2]
[365217153,1749539438051,-466.70007194,0.0001726,2]
[365217327,1749539440164,-23.29992806,0.0001726,2]
[365217330,1749539440174,-490.0,0.00017424,2]
[365217332,1749539440187,-395.86313994,0.00017589,2]
[365217334,1749539440197,-4.60071846,0.00017671,2]
[365217336,1749539440208,-764.745945,0.00017671,2]
[365217345,1749539440284,-113.65333654,0.00017671,2]
[365217347,1749539440294,-7116.49302475,0.00017987,2]
[365217349,1749539440305,-696.81574503,0.00017987,2]
[365217384,1749539442962,-853.0,0.00017671,2]
[365217385,1749539442974,-9609.3680702,0.00017987,2]
[365217386,1749539442985,-4351.83130224,0.00017987,2]
[365217387,1749539442994,-2570.0316779,0.00017987,2]
[365217388,1749539443004,-151.0,0.00017987,2]
[365217389,1749539443013,-6898.97741071,0.00017988,2]
[365217390,1749539443240,-1257.633921,0.00017988,2]
[365217393,1749539443742,490.0,0.00016438,2]
[365217394,1749539443994,490.0,0.00016602,2]
[365217395,1749539444081,188.56,0.000169,3]
[365217396,1749539444236,490.0,0.00016767,2]
[365217397,1749539444507,490.0,0.00016931,2]
[365217399,1749539446003,-490.0,0.00017095,2]
[365217400,1749539446015,-490.0,0.0001726,2]
[365217401,1749539446025,-490.0,0.00017424,2]
[365217402,1749539446035,-412.92225957,0.00017589,2]
[365217403,1749539446048,-77.07774043,0.00017589,2]
[365217404,1749539446057,-2594.38573146,0.00017988,2]
[365217405,1749539446069,-810.63293683,0.00017988,2]
[365217406,1749539446078,-158.346538,0.00017988,2]
[365217407,1749539446088,-147.1638798,0.00017988,2]
[365217408,1749539446099,-11.1826582,0.00017988,2]
[365217409,1749539446109,-151.0,0.00017988,2]
[365217410,1749539446119,-151.0,0.00017988,2]
[365217411,1749539446129,-151.0,0.00017988,2]
[365217412,1749539446139,-151.0,0.00017988,2]
[365217413,1749539446148,-151.0,0.00017988,2]
[365217414,1749539446158,-151.600732,0.00017988,2]
[365217415,1749539446167,-3082.8875865,0.00017988,2]
[365217416,1749539446177,-169.302,0.00017988,2]
[365217417,1749539446187,-169.302,0.00017988,2]
[365217418,1749539446196,-151.0,0.00017988,2]
[365217419,1749539446205,-151.0,0.00017988,2]
[365217420,1749539446215,-103.52469784,0.00017988,2]
[365217421,1749539446226,-1397.585331,0.00017988,2]
[365217422,1749539446237,-2029.788385,0.00017988,2]
[365217423,1749539446248,-13619.72309436,0.00017988,2]
[365217424,1749539446258,-151.0,0.00017988,2]
[365217425,1749539446267,-151.0,0.00017988,2]
[365217426,1749539446276,-151.0,0.00017988,2]
[365217427,1749539446286,-151.0,0.00017988,2]
[365217428,1749539446295,-151.0,0.00017988,2]
[365217430,1749539446304,-769.662599,0.00017988,2]
[365217431,1749539446313,-769.662599,0.00017988,2]
[365217432,1749539446323,-151.0,0.00017988,2]
[365217433,1749539446332,-470.650731,0.00017988,2]
[365217434,1749539446341,-470.650731,0.00017988,2]
[365217435,1749539446350,-11454.26943811,0.00017988,2]
[365217436,1749539446579,-490.0,0.00017753,2]
[365217437,1749539446589,-997.94078238,0.00017988,2]
[365217438,1749539446601,-843.8000001,0.00017988,2]
[365217439,1749539446612,-879.96,0.00017988,2]
[365217440,1749539450932,-2487.79861121,0.00017988,2]
[365217441,1749539450944,-688.08525818,0.00017988,2]
[365217442,1749539450955,-1873.14887,0.00017988,2]
[365217443,1749539450973,-619.76020313,0.00017988,2]
[365217444,1749539450983,-2292.4,0.00017988,2]
[365217445,1749539450996,-54407.96117019,0.00017988,2]
[365217446,1749539451006,-151.0,0.00017988,2]
[365217447,1749539451016,-151.0,0.00017988,2]
[365217448,1749539451026,-151.0,0.00017988,2]
[365217449,1749539451035,-2143.4070207,0.00017988,2]
[365217450,1749539451044,-677.879688,0.00017988,2]
[365217451,1749539451054,-677.879688,0.00017988,2]
[365217452,1749539451063,-1735.169931,0.00017988,2]
[365217453,1749539451072,-1735.169931,0.00017988,2]
[365217454,1749539451081,-151.0,0.00017988,2]
[365217455,1749539451090,-151.0,0.00017988,2]
[365217456,1749539451099,-673.06473908,0.00017989,2]
[365217457,1749539451108,-500.0,0.00017989,2]
[365217458,1749539451117,-673.19,0.00017989,2]
[365217459,1749539451127,-500.0,0.00017989,2]
[365217460,1749539451136,-18954.55731168,0.0001799,2]
[365217461,1749539500535,490.0,0.00016438,2]
[365217462,1749539500776,490.0,0.00016602,2]
[365217463,1749539501109,490.0,0.00016767,2]
[365217464,1749539501288,490.0,0.00016931,2]
[365217465,1749539511804,500.0,0.00014964,2]
[365217466,1749539520360,480.0,0.00016438,2]
[365217467,1749539522164,397.450152,0.00016438,2]
[365217469,1749539527246,208.58,0.00013699,2]
[365217470,1749539528735,480.0,0.00016438,2]
[365217472,1749539532136,117.30009654,0.00016438,2]
[365217473,1749539532161,362.69990346,0.00016438,2]
[365217474,1749539554027,480.0,0.00016438,2]
[365217475,1749539555980,480.0,0.00016438,2]
[365217476,1749539563161,490.0,0.00016438,2]
[365217477,1749539563411,490.0,0.00016602,2]
[365217478,1749539563892,490.0,0.00016767,2]
[365217479,1749539564223,490.0,0.00016438,2]
[365217480,1749539564398,490.0,0.00016931,2]
[365217481,1749539564478,490.0,0.00016602,2]
[365217482,1749539565078,490.0,0.00016767,2]
[365217483,1749539565456,490.0,0.00016931,2]
[365217484,1749539568725,490.0,0.00016438,2]
[365217485,1749539569003,490.0,0.00016602,2]
[365217486,1749539569253,490.0,0.00016767,2]
[365217487,1749539569596,490.0,0.00016931,2]
[365217488,1749539594209,490.0,0.00016438,2]
[365217489,1749539594480,490.0,0.00016602,2]
[365217490,1749539594724,548.65171925,0.00016767,2]
[365217491,1749539602333,434.75214681,0.00016438,2]
[365217492,1749539610234,480.0,0.00016438,2]
[365217493,1749539610395,490.0,0.00016438,2]
[365217494,1749539610652,490.0,0.00016602,2]
[365217495,1749539611340,490.0,0.00016767,2]
[365217496,1749539611385,490.0,0.00016931,2]
[365217497,1749539611881,490.0,0.00016438,2]
[365217498,1749539612139,490.0,0.00016602,2]
[365217499,1749539612394,490.0,0.00016767,2]
[365217500,1749539612661,490.0,0.00016931,2]
[365217501,1749539621864,204.0,0.00016262,2]
[365217502,1749539625034,490.0,0.00016438,2]
[365217504,1749539640402,490.0,0.00016438,2]
[365217505,1749539640567,490.0,0.00016438,2]
[365217506,1749539640675,490.0,0.00016602,2]
[365217507,1749539640821,490.0,0.00016602,2]
[365217508,1749539641079,490.0,0.00016767,2]
[365217509,1749539641300,490.0,0.00016767,2]
[365217510,1749539641355,490.0,0.00016931,2]
[365217511,1749539641819,490.0,0.00016931,2]
[365217512,1749539642071,600.01627953,0.00017,2]
[365217513,1749539643006,490.0,0.00016438,2]
[365217514,1749539643267,490.0,0.00016602,2]
[365217515,1749539643516,490.0,0.00016767,2]
[365217516,1749539643848,490.0,0.00016931,2]
[365217519,1749539649963,480.0,0.00016438,2]
[365217521,1749539662047,377.93485431,0.00016438,2]
[365217524,1749539681944,206.0,0.00016262,2]
[365217525,1749539682445,150.0,0.00017052,5]
[365217526,1749539687027,490.0,0.00016438,2]
[365217527,1749539687320,490.0,0.00016602,2]
[365217528,1749539687571,490.0,0.00016767,2]
[365217529,1749539687828,490.0,0.00016931,2]
[365217535,1749539739695,490.0,0.00016438,2]
[365217536,1749539739954,490.0,0.00016602,2]
[365217537,1749539740200,111.41449664,0.00016767,2]
[365217538,1749539740225,378.58550336,0.00016767,2]
[365217539,1749539740451,490.0,0.00016931,2]
[365217546,1749539797309,490.0,0.00016438,2]
[365217547,1749539797579,490.0,0.00016602,2]
[365217548,1749539797868,490.0,0.00016767,2]
[365217549,1749539798136,490.0,0.00016931,2]
[365217553,1749539806386,490.0,0.00016438,2]
[365217554,1749539806673,490.0,0.00016602,2]
[365217555,1749539806934,490.0,0.00016767,2]
[365217556,1749539807179,490.0,0.00016931,2]
[365217557,1749539809151,490.0,0.00016438,2]
[365217558,1749539809464,490.0,0.00016602,2]
[365217559,1749539809716,490.6680293,0.00016767,2]
[365217564,1749539844131,490.0,0.00016438,2]
[365217565,1749539844388,490.0,0.00016602,2]
[365217566,1749539844635,490.0,0.00016767,2]
[365217567,1749539844882,490.0,0.00016931,2]
[365217568,1749539848590,490.0,0.00016438,2]
[365217569,1749539849235,490.0,0.00016602,2]
[365217570,1749539849862,490.0,0.00016767,2]
[365217571,1749539850119,490.0,0.00016931,2]
[365217573,1749539852773,490.0,0.00016438,2]
[365217574,1749539853181,462.94,0.00016602,2]
[365217576,1749539858083,490.0,0.00016438,2]
[365217580,1749539858375,490.0,0.00016602,2]
[365217583,1749539858619,490.0,0.00016767,2]
[365217585,1749539858875,490.0,0.00016931,2]
[365217588,1749539869651,490.0,0.00016438,2]
[365217589,1749539869891,490.0,0.00016602,2]
[365217590,1749539870141,490.0,0.00016767,2]
[365217591,1749539870501,490.0,0.00016931,2]
[365217592,1749539872024,490.0,0.00016438,2]
[365217593,1749539872295,490.0,0.00016602,2]
[365217594,1749539872562,490.0,0.00016767,2]
[365217595,1749539873345,490.0,0.00016931,2]
[365217597,1749539879220,490.0,0.00016438,2]
[365217598,1749539879471,490.0,0.00016602,2]
[365217599,1749539879744,490.0,0.00016767,2]
[365217600,1749539879984,490.0,0.00016931,2]
[365217601,1749539881846,192.82,0.00015975,2]
[365217603,1749539887694,490.0,0.00016438,2]
[365217604,1749539887948,490.0,0.00016602,2]
[365217605,1749539888185,490.0,0.00016767,2]
[365217606,1749539888438,490.0,0.00016931,2]
[365217607,1749539889495,490.0,0.00016438,2]
[365217608,1749539889767,490.0,0.00016602,2]
[365217609,1749539890015,490.0,0.00016767,2]
[365217610,1749539890272,490.0,0.00016931,2]
[365217612,1749539903827,348.646795,0.00016438,2]
[365217614,1749539915055,490.0,0.00016438,2]
[365217615,1749539915321,490.0,0.00016602,2]
[365217616,1749539915579,441.80907234,0.00016767,2]
[365217617,1749539915605,48.19092766,0.00016767,2]
[365217618,1749539915836,490.0,0.00016931,2]
[365217619,1749539926048,480.0,0.00016438,2]
[365217624,1749539969509,490.0,0.00016438,2]
[365217625,1749539974244,490.0,0.00016438,2]
[365217626,1749539974491,490.0,0.00016602,2]
[365217627,1749539974727,292.17,0.00016767,2]
[365217628,1749539975733,565.28,0.00016438,2]
[365217630,1749539977383,200.0,0.00016878,2]
[365217631,1749539980422,490.0,0.00016438,2]
[365217632,1749539980667,490.0,0.00016602,2]
[365217633,1749539980912,490.0,0.00016767,2]
[365217634,1749539981152,490.0,0.00016931,2]
[365217636,1749539995016,280.04,0.00016438,2]
[365217637,1749540000160,480.0,0.00016438,2]
[365217639,1749540012934,600.55,0.00014057,2]
[365217640,1749540013127,600.55,0.00016321,2]
[365217642,1749540028738,480.0,0.00016438,2]
[365217645,1749540046689,490.0,0.00016438,2]
[365217646,1749540046943,490.0,0.00016602,2]
[365217647,1749540047213,490.0,0.00016767,2]
[365217648,1749540047515,490.0,0.00016931,2]
[365217650,1749540062429,490.0,0.00016438,2]
[365217651,1749540062698,490.0,0.00016602,2]
[365217652,1749540062954,490.0,0.00016767,2]
[365217653,1749540063248,490.0,0.00016931,2]
[365217654,1749540067670,252.62,0.00017,2]
[365217655,1749540071896,490.0,0.00016438,2]
[365217657,1749540077599,490.0,0.00016438,2]
[365217658,1749540077842,490.0,0.00016602,2]
[365217659,1749540078098,362.66449376,0.00016767,2]
[365217660,1749540086090,6531.77,0.00016728,2]
[365217662,1749540090163,431.66962099,0.00016438,2]
[365217664,1749540105537,490.0,0.00016438,2]
[365217665,1749540105804,490.0,0.00016602,2]
[365217666,1749540106051,490.0,0.00016767,2]
[365217667,1749540106331,490.0,0.00016931,2]
[365217669,1749540108403,490.0,0.00016438,2]
[365217670,1749540108673,490.0,0.00016602,2]
[365217671,1749540108945,490.0,0.00016767,2]
[365217672,1749540109230,490.0,0.00016931,2]
[365217673,1749540114548,19.96435759,0.00016438,2]
[365217674,1749540114576,470.03564241,0.00016438,2]
[365217675,1749540114820,490.0,0.00016602,2]
[365217676,1749540115071,490.0,0.00016767,2]
[365217677,1749540115321,490.0,0.00016931,2]
[365217678,1749540115798,490.0,0.00016438,2]
[365217679,1749540116033,490.0,0.00016602,2]
[365217680,1749540116294,490.0,0.00016767,2]
[365217681,1749540116547,490.0,0.00016931,2]
[365217682,1749540121657,490.0,0.00016438,2]
[365217683,1749540121919,609.65520832,0.00016602,2]
[365217686,1749540126369,1000.0,0.00016694,2]
[365217687,1749540131987,200.0,0.00016164,2]
[365217688,1749540132291,200.0,0.00016662,2]
[365217691,1749540157621,490.0,0.00016438,2]
[365217692,1749540157880,490.0,0.00016602,2]
[365217693,1749540158132,490.0,0.00016767,2]
[365217694,1749540158176,163.40318807,0.00016438,2]
[365217695,1749540158367,490.0,0.00016931,2]
[365217696,1749540160390,150.0,0.00016651,7]
[365217698,1749540172375,480.0,0.00016438,2]
[365217705,1749540236177,490.0,0.00016438,2]
[365217706,1749540236219,490.0,0.00016602,2]
[365217707,1749540236472,490.0,0.00016767,2]
[365217708,1749540236736,490.0,0.00016931,2]
[365217710,1749540260241,490.0,0.00016438,2]
[365217711,1749540260503,490.0,0.00016602,2]
[365217712,1749540261029,490.0,0.00016767,2]
[365217713,1749540261309,490.0,0.00016931,2]
[365217715,1749540271615,490.0,0.00016438,2]
[365217716,1749540271875,490.0,0.00016602,2]
[365217717,1749540272172,490.0,0.00016767,2]
[365217718,1749540272424,490.0,0.00016931,2]
[365217725,1749540330850,490.0,0.00016438,2]
[365217726,1749540331154,490.0,0.00016602,2]
[365217727,1749540331422,490.0,0.00016767,2]
[365217728,1749540331744,490.0,0.00016931,2]
[365217730,1749540334552,460.0,0.00016438,2]
[365217733,1749540361300,490.0,0.00016438,2]
[365217734,1749540361547,173.61728618,0.00016602,2]
[365217737,1749540368827,490.0,0.00016438,2]
[365217738,1749540369089,490.0,0.00016602,2]
[365217739,1749540369329,490.0,0.00016767,2]
[365217740,1749540369568,490.0,0.00016931,2]
[365217741,1749540370665,336.37483659,0.00016438,2]
[365217742,1749540373836,490.0,0.00016438,2]
[365217743,1749540374078,490.0,0.00016602,2]
[365217744,1749540374327,490.0,0.00016767,2]
[365217745,1749540374607,490.0,0.00016931,2]
[365217747,1749540381499,2119.97,0.00016662,2]
[365217748,1749540391758,190.22406757,0.00016438,2]
[365217749,1749540392750,322.18917086,0.00016438,2]
[365217750,1749540392782,157.81082914,0.00016438,2]
[365217753,1749540402746,173.87,0.00016662,2]
[365217755,1749540412605,239.68347874,0.00016438,2]
[365217757,1749540439857,490.0,0.00016438,2]
[365217758,1749540442194,490.0,0.00016602,2]
[365217761,1749540442495,490.0,0.00016767,2]
[365217762,1749540442668,561.680001,0.00016931,2]
[365217767,1749540491745,200.0,0.0001616,2]
[365217768,1749540492026,200.0,0.0001667,2]
[365217781,1749540528282,490.0,0.00016438,2]
[365217782,1749540528549,490.0,0.00016602,2]
[365217783,1749540528807,490.0,0.00016767,2]
[365217784,1749540529054,490.0,0.00016931,2]
[365217791,1749540545797,490.0,0.00016438,2]
[365217792,1749540546114,490.0,0.00016602,2]
[365217793,1749540546369,490.0,0.00016767,2]
[365217794,1749540546818,490.0,0.00016931,2]
[365217795,1749540550221,480.0,0.00016438,2]
[365217803,1749540577765,490.0,0.00016438,2]
[365217804,1749540577886,490.0,0.00016602,2]
[365217805,1749540578128,490.0,0.00016767,2]
[365217806,1749540578394,490.0,0.00016931,2]
[365217808,1749540600454,490.0,0.00016438,2]
[365217810,1749540600720,490.0,0.00016602,2]
[365217811,1749540600997,458.4502435,0.00016767,2]
[365217812,1749540605249,490.0,0.00016438,2]
[365217813,1749540605533,196.77651504,0.00016602,2]
[365217814,1749540608923,250.0,0.00016678,2]
[365217834,1749540632214,-250.0,0.00017027,2]
[365217835,1749540632224,-190.0,0.00017031,2]
[365217836,1749540632233,-130.00072553,0.00017031,2]
[365217837,1749540632411,-169.99927447,0.00017031,2]
[365217839,1749540632420,-1200.0,0.00017031,2]
[365217840,1749540632432,-151.0,0.00017032,2]
[365217841,1749540632442,-151.0,0.00017032,2]
[365217842,1749540632451,-151.0,0.00017032,2]
[365217843,1749540632461,-151.0,0.00017032,2]
[365217844,1749540632470,-151.0,0.00017032,2]
[365217845,1749540632480,-151.0,0.00017032,2]
[365217846,1749540632490,-290.88146364,0.00017032,2]
[365217847,1749540632500,-207.4,0.00017032,2]
[365217848,1749540632509,-300.0,0.00017032,2]
[365217849,1749540632519,-169.31432995,0.00017041,2]
[365217852,1749540632529,-169.31432995,0.00017041,2]
[365217855,1749540632539,-16031.09,0.00017042,2]
[365217858,1749540632548,-169.31432995,0.00017042,2]
[365217861,1749540632557,-200.0,0.00017052,2]
[365217863,1749540632567,-1000.0,0.00017094,2]
[365217865,1749540632576,-490.0,0.00017095,2]
[365217867,1749540632585,-490.0,0.00017095,2]
[365217869,1749540632595,-490.0,0.00017095,2]
[365217871,1749540632604,-150.0,0.00017163,2]
[365217873,1749540632614,-200.0,0.0001718,3]
[365217875,1749540632624,-200.0,0.00017223,2]
[365217877,1749540632633,-490.0,0.0001726,2]
[365217879,1749540632643,-263.36631977,0.0001726,2]
[365217880,1749540632652,-395.77271382,0.0001726,2]
[365217881,1749540632662,-3219.83241889,0.00017275,2]
[365217882,1749540632672,-833.29909032,0.00017301,2]
[365217883,1749540632681,-200.0,0.00017395,2]
[365217884,1749540632694,-400.0,0.000174,6]
[365217886,1749540632704,-460.58376346,0.00017424,2]
[365217888,1749540632714,-602.686,0.00017479,2]
[365217889,1749540632724,-900.0,0.000175,6]
[365217892,1749540632733,-150.0,0.00017534,2]
[365217893,1749540632743,-150.0,0.00017534,2]
[365217896,1749540632761,-150.0,0.00017534,2]
[365217899,1749540632772,-505.33,0.00017534,2]
[365217901,1749540632782,-1163.59,0.00017534,2]
[365217902,1749540632791,-343.21,0.00017534,2]
[365217904,1749540632801,-150.0,0.00017534,2]
[365217907,1749540632811,-1163.59,0.00017534,2]
[365217909,1749540632820,-150.24,0.00017534,2]
[365217911,1749540632830,-150.0,0.00017534,2]
[365217912,1749540632839,-300.0,0.00017534,2]
[365217914,1749540632849,-150.0,0.00017534,2]
[365217916,1749540632858,-300.4,0.00017534,2]
[365217919,1749540632868,-170.63,0.00017534,2]
[365217921,1749540632879,-150.0,0.00017534,2]
[365217923,1749540632888,-150.0,0.00017534,2]
[365217925,1749540632897,-170.69,0.00017534,2]
[365217927,1749540632907,-170.69,0.00017534,2]
[365217929,1749540632917,-150.0,0.00017534,2]
[365217931,1749540632927,-150.0,0.00017534,2]
[365217933,1749540632936,-150.0,0.00017534,2]
[365217934,1749540632946,-150.0,0.00017534,2]
[365217936,1749540632956,-150.0,0.00017534,2]
[365217938,1749540632966,-341.12,0.00017534,2]
[365217939,1749540632975,-354.51,0.00017534,2]
[365217940,1749540632985,-354.51,0.00017534,2]
[365217941,1749540632996,-300.98,0.00017534,2]
[365217942,1749540633007,-354.51,0.00017534,2]
[365217943,1749540633017,-200.0,0.00017569,2]
[365217944,1749540633027,-795.89944815,0.00017575,2]
[365217945,1749540633037,-500.0,0.0001759,2]
[365217946,1749540633047,-200.0,0.0001759,2]
[365217947,1749540633058,-163.22,0.000176,2]
[365217948,1749540633069,-170.69,0.000176,2]
[365217949,1749540633079,-150.0,0.000176,2]
[365217950,1749540633090,-1163.59,0.000176,2]
[365217951,1749540633101,-1163.59,0.000176,2]
[365217952,1749540633111,-170.69,0.000176,2]
[365217953,1749540633121,-150.0,0.000176,2]
[365217954,1749540633132,-150.0,0.000176,2]
[365217955,1749540633142,-461.11,0.000176,2]
[365217956,1749540633152,-150.0,0.000176,2]
[365217957,1749540633163,-150.0,0.000176,2]